[Event "Czech Youth U10 Boys 2024"]
[Site "Kouty nad Desnou"]
[Date "2024.03.09"]
[Round "1.1"]
[White "Artamonov, Mikhail"]
[Black "Zrust, Lukas"]
[Result "1-0"]
[ECO "B40"]
[WhiteElo "1727"]
[BlackElo "1893"]
[Annotator "NA RC"]
[PlyCount "127"]
[EventDate "2024.03.10"]
[EventType "swiss"]
[EventRounds "9"]
[EventCountry "CZE"]
[SourceTitle "playchess.com"]
[Source "ChessBase"]
[SourceQuality "1"]
[TimeControl "40/5400+30:1800+30"]

1. e4 c5 2. Nf3 e6 3. c4 Nc6 4. d4 cxd4 5. Nxd4 Nf6 6. Nc3 Be7 7. Be3 O-O 8. Be2 a6 9. O-O Qc7 10. f4 d6 11. Nb3 b6 12. Rc1 Na5 13. Nd4 Nb7 14. b4 e5 15. Nb3 a5 16. Nd5 Nxd5 17. cxd5 Qd8 18. a3 axb4 19. axb4 Bd7 20. fxe5 dxe5 21. b5 Nd6 22. Nd2 Bxb5 23. Bxb5 Nxb5 24. Nc4 Nd4 25. Nxe5 Nb5 26. Nc6 Qe8 27. Qb3 Ra3 28. Qxb5 Rxe3 29. Qxb6 Rxe4 30. Qc7 Bd8 31. Qb7 Bg5 32. Rcd1 Re2 33. Qb4 Re4 34. Qc3 Re3 35. Qc2 Re2 36. Qf5 h6 37. Kh1 Qe4 38. Qxe4 Rxe4 39. d6 Re6 40. Rd5 Bd8 41. Ne5 Bf6 42. d7 Bd8 43. Rc1 g6 44. Nc6 Kg7 45. g3 Kf6 46. Kg2 Re2+ 47. Kf3 Re6 48. Nd4 Ra6 49. Rc8 Ra3+ 50. Ke4 Ra4 51. Kd3 Rg8 52. Nc6 Ke6 53. Nxd8+ Kxd5 54. Nb7 Rd4+ 55. Ke3 Ke5 56. d8=Q Rgxd8 57. Rxd8 Rb4 58. Re8+ Kd5 59. Nd8 Rb3+ 60. Kf4 g5+ 61. Kg4 Rb2 62. Nxf7 Rxh2 63. Rh8 Ke6 64. Rxh6+ 1-0

[Event "Czech Youth U10 Boys 2024"]
[Site "Kouty nad Desnou"]
[Date "2024.03.09"]
[Round "1.2"]
[White "Velim, Vojtech"]
[Black "Sudrich, Radek"]
[Result "1-0"]
[ECO "A06"]
[WhiteElo "1889"]
[BlackElo "1998"]
[Annotator "RC"]
[PlyCount "113"]
[EventDate "2024.03.10"]
[EventType "swiss"]
[EventRounds "9"]
[EventCountry "CZE"]
[SourceTitle "playchess.com"]
[Source "ChessBase"]
[SourceQuality "1"]
[TimeControl "40/5400+30:1800+30"]

1. Nf3 d5 2. c4 e6 3. e3 Nf6 4. Nc3 c6 5. b3 Nbd7 6. Bb2 Bb4 7. Qc2 b6 8. Be2 Bb7 9. O-O-O Rc8 10. Kb1 Bxc3 11. Qxc3 Rg8 12. d3 Qc7 13. Ne5 c5 14. Bf3 Ke7 15. Rhe1 Nxe5 16. Qxe5 Qxe5 17. Bxe5 Bc6 18. Bb2 Rgd8 19. Kc1 b5 20. Ba3 b4 21. Bb2 a5 22. a4 dxc4 23. Bxc6 Rxc6 24. dxc4 Rcd6 25. Be5 R6d7 26. Kc2 Ne8 27. Rxd7+ Rxd7 28. e4 f6 29. Bf4 Nd6 30. Be3 Nb7 31. f3 e5 32. g3 Kd6 33. f4 Ke6 34. fxe5 fxe5 35. Rf1 Rf7 36. Rd1 Rd7 37. Rd5 Rxd5 38. cxd5+ Kd6 39. Kd3 Kc7 40. Bg5 Kd7 41. g4 Nd6 42. Bh4 Nf7 43. Bf2 Ng5 44. Bxc5 Kc7 45. h4 Nf3 46. Bf2 Nh2 47. g5 Ng4 48. Bg3 Kd6 49. Kc4 Ne3+ 50. Kb5 Nf1 51. Be1 Nh2 52. Kxa5 Nf3 53. Bxb4+ Kd7 54. Kb5 Nd4+ 55. Kc4 Nc2 56. a5 Ne3+ 57. Kc5 1-0

[Event "Czech Youth U10 Boys 2024"]
[Site "Kouty nad Desnou"]
[Date "2024.03.09"]
[Round "1.3"]
[White "Frantsev, Iegor"]
[Black "Honcharov, Makar"]
[Result "1/2-1/2"]
[ECO "B23"]
[WhiteElo "1721"]
[BlackElo "1872"]
[Annotator "NA RC"]
[PlyCount "96"]
[EventDate "2024.03.10"]
[EventType "swiss"]
[EventRounds "9"]
[EventCountry "CZE"]
[SourceTitle "playchess.com"]
[Source "ChessBase"]
[SourceQuality "1"]
[TimeControl "40/5400+30:1800+30"]

1. e4 c5 2. Nc3 d6 3. f4 g6 4. Nf3 Bg7 5. Bb5+ Nc6 6. O-O e6 7. d3 Nge7 8. Qe1 a6 9. Bxc6+ Nxc6 10. f5 O-O 11. fxg6 fxg6 12. Bg5 Qc7 13. Qh4 Nd4 14. Rac1 b5 15. Nxd4 Bxd4+ 16. Kh1 Bb7 17. Bh6 Bg7 18. Bxg7 Qxg7 19. Ne2 Qxb2 20. Qe7 Qg7 21. Qxe6+ Kh8 22. Qxd6 c4 23. Nf4 Rad8 24. Qb4 Rfe8 25. Rcd1 Qe5 26. a4 Bxe4 27. dxe4 Rxd1 28. Rxd1 Qxf4 29. axb5 axb5 30. Qxb5 Qxe4 31. Rg1 Re7 32. Qb2+ Kg8 33. Qb8+ Kg7 34. Qb2+ Qe5 35. Qb4 c3 36. Qc4 Qe3 37. Rf1 h5 38. Qc6 Rf7 39. Rxf7+ Kxf7 40. Qf3+ Qxf3 41. gxf3 Kf6 42. Kg2 Ke5 43. Kf2 Kf4 44. Ke2 g5 45. Kf2 g4 46. fxg4 hxg4 47. Ke2 Kg5 48. Kf2 Kf4 1/2-1/2

[Event "Czech Youth U10 Boys 2024"]
[Site "Kouty nad Desnou"]
[Date "2024.03.09"]
[Round "1.4"]
[White "Bara, Jan"]
[Black "Sotek, Matej"]
[Result "1/2-1/2"]
[ECO "A13"]
[WhiteElo "1852"]
[BlackElo "1716"]
[Annotator "NA RC"]
[PlyCount "159"]
[EventDate "2024.03.10"]
[EventType "swiss"]
[EventRounds "9"]
[EventCountry "CZE"]
[SourceTitle "playchess.com"]
[Source "ChessBase"]
[SourceQuality "1"]
[TimeControl "40/5400+30:1800+30"]

1. c4 e6 2. g3 d5 3. Bg2 Nf6 4. Nf3 Bd6 5. O-O O-O 6. d3 c6 7. Nc3 Re8 8. Rb1 Nbd7 9. b4 Nf8 10. c5 Bc7 11. d4 Ng6 12. b5 e5 13. dxe5 Nxe5 14. Nd4 Bd7 15. Bg5 Ba5 16. Na4 h6 17. Bf4 Ng6 18. Bd6 Bc7 19. Bxc7 Qxc7 20. b6 axb6 21. Rxb6 Ne5 22. Qb3 Bc8 23. Rb4 Nc4 24. Nb6 Nxb6 25. cxb6 Qd6 26. Ra4 Rxa4 27. Qxa4 c5 28. Nc2 Qxb6 29. Ne3 Rd8 30. Rd1 Be6 31. Qc2 Qc7 32. a4 b6 33. Rb1 d4 34. Nc4 Bxc4 35. Qxc4 Nd7 36. Qb5 Rb8 37. Bh3 Nf6 38. a5 Nd5 39. Qd7 Qxd7 40. Bxd7 Nb4 41. axb6 Rxb6 42. Rc1 Rd6 43. Bb5 Na2 44. Rxc5 Nc3 45. Bd3 g6 46. Rc8+ Kg7 47. Rc7 Nd5 48. Ra7 Nf6 49. Bb5 Rb6 50. Bc4 Ne4 51. Rxf7+ Kh8 52. Rd7 Rd6 53. Rxd6 Nxd6 54. Bd3 Kg7 55. Kg2 Kf6 56. Kf3 g5 57. h3 Ke5 58. Kg4 Kf6 59. f4 Nf7 60. Bc2 Nd6 61. h4 gxh4 62. gxh4 Nc4 63. Bd3 Ne3+ 64. Kf3 h5 65. Bb5 Nf5 66. Be8 Nxh4+ 67. Ke4 Nf5 68. Bd7 Ng3+ 69. Kf3 Nf5 70. Ke4 Ng3+ 71. Kd3 Nf5 72. Ke4 Ng3+ 73. Kf3 Nf5 74. Ke4 Ng3+ 75. Kxd4 Nxe2+ 76. Ke3 Nxf4 77. Kxf4 h4 78. Bh3 Ke7 79. Kg5 Kd8 80. Kxh4 1/2-1/2

[Event "Czech Youth U10 Boys 2024"]
[Site "Kouty nad Desnou"]
[Date "2024.03.09"]
[Round "1.5"]
[White "Malek, Daniel"]
[Black "Sochor, Vaclav"]
[Result "1/2-1/2"]
[ECO "B01"]
[WhiteElo "2278"]
[BlackElo "1826"]
[Annotator "TA"]
[PlyCount "68"]
[EventDate "2024.03.10"]
[EventType "swiss"]
[EventRounds "9"]
[EventCountry "CZE"]
[SourceTitle "playchess.com"]
[Source "ChessBase"]
[SourceQuality "1"]
[TimeControl "40/5400+30:1800+30"]

{[%evp 11,68,20,24,-17,36,49,62,31,43,32,34,24,30,0,10,-2,0,0,0,-23,-24,-41,-35,-51,-37,-64,-31,-62,0,0,122,126,115,-68,-5,18,311,339,449,395,794,802,770,627,2413,2278,3137,133,108,56,88,63,49,46,48,68,43,46,21]} 1. e4 d5 2. exd5 Qxd5 3. Nc3 Qa5 4. Bc4 Nf6 5. d3 c6 6. Bd2 Qc7 7. Nge2 Bg4 (7... b5 $11 8. Bb3 a5) 8. f3 $14 Bd7 9. O-O e6 10. Bf4 Bd6 11. Bxd6 Qxd6 12. Re1 O-O (12... b5 $5 13. Bb3 $8 c5 $11) 13. Qd2 b5 14. Bb3 c5 {[%cal Oc5c4] Droht ...c4! und aus.} 15. Qg5 h6 16. Qg3 Qb6 {Zielt auf ...c4+ ab.} 17. Kf1 Nc6 18. Rad1 Rad8 19. Nf4 Nd4 ({Günstiger ist} 19... Ne7 $15 20. Ne4 Nxe4 21. fxe4 Ng6) 20. Ne4 $11 Nh7 (20... Nxe4 $11 21. dxe4 b4) 21. Nh5 $16 Nf5 22. Qf4 {Weiß steht deutlich aktiver.} (22. Qe5 $16 {[%cal Og2g4] Schwarz muss nun g4! beachten.} Kh8 23. Qxc5 (23. Nxc5 Bc6 $16)) 22... Bc6 ({Vorzuziehen ist} 22... c4 $1 $15 23. dxc4 bxc4 24. Bxc4 Bb5 (24... Qxb2 25. Bb3 $11)) 23. Neg3 $40 {[%mdl 128] Weiss hat was vor.} Rd4 $2 {[%mdl 8192]} (23... Nd4 $11) 24. Qe5 $18 Nxg3+ 25. hxg3 {[%csl Gh5][%cal Re5g7]} f6 $2 (25... Nf6 26. c3 (26. Nxf6+ gxf6 27. Qxf6 c4 $18) 26... Rxd3) 26. Qxe6+ Kh8 27. Qe7 Rd7 {[#]} 28. Nf4 $1 {[%cal Rf4g6]} c4 (28... Bd5 29. Ng6+) 29. Qe6 $2 (29. Ng6+ $18 Kg8 30. dxc4) 29... g5 $16 30. Ng6+ Kg7 31. Nxf8 Nxf8 {Weiß steht etwas besser.} 32. Qe3 Qxe3 33. Rxe3 {[%cal Od1e1]} cxb3 34. axb3 Kf7 {Gewichteter Fehlerwert: Weiß=0.50/Schwarz=0.51.  Verlustzug:     	---       	Schwarz=1     Fehler:       	Weiß=1     	Schwarz=5     Ungenau:       	Weiß=4     	Schwarz=3     OK:         	Weiß=5     	Schwarz=9     Bester:       	Weiß=4     	Schwarz=1} 1/2-1/2

[Event "Czech Youth U10 Boys 2024"]
[Site "Kouty nad Desnou"]
[Date "2024.03.09"]
[Round "1.6"]
[White "Hladky, Mikulas"]
[Black "Kroulik, Stepan"]
[Result "1-0"]
[ECO "B31"]
[WhiteElo "1798"]
[BlackElo "1683"]
[Annotator "NA RC"]
[PlyCount "53"]
[EventDate "2024.03.10"]
[EventType "swiss"]
[EventRounds "9"]
[EventCountry "CZE"]
[SourceTitle "playchess.com"]
[Source "ChessBase"]
[SourceQuality "1"]
[TimeControl "40/5400+30:1800+30"]

1. e4 c5 2. Nf3 Nc6 3. Bb5 g6 4. O-O Bg7 5. Re1 d6 6. c3 a6 7. Bxc6+ bxc6 8. d4 cxd4 9. cxd4 Nf6 10. Nc3 O-O 11. h3 Rb8 12. b3 Bd7 13. Bb2 Qc7 14. Rc1 Rfc8 15. e5 dxe5 16. dxe5 Ne8 17. Ba3 e6 18. Ne4 Bf8 19. Bxf8 Kxf8 20. Nfg5 Kg7 21. Qf3 f5 22. exf6+ Kh8 23. Nf7+ Kg8 24. Nh6+ Kh8 25. Ng5 Nd6 26. Rcd1 Be8 27. Rxd6 1-0

[Event "Czech Youth U10 Boys 2024"]
[Site "Kouty nad Desnou"]
[Date "2024.03.09"]
[Round "1.7"]
[White "Gresek, Oskar"]
[Black "Sochor, Antonin"]
[Result "1-0"]
[ECO "C01"]
[WhiteElo "1629"]
[BlackElo "1779"]
[Annotator "NA RC"]
[PlyCount "57"]
[EventDate "2024.03.10"]
[EventType "swiss"]
[EventRounds "9"]
[EventCountry "CZE"]
[SourceTitle "playchess.com"]
[Source "ChessBase"]
[SourceQuality "1"]
[TimeControl "40/5400+30:1800+30"]

1. e4 e6 2. d4 d5 3. exd5 exd5 4. Nf3 Nf6 5. Bd3 Bd6 6. O-O O-O 7. Bg5 Bg4 8. Nbd2 Nc6 9. c3 h6 10. Bh4 Bf4 11. Qc2 Qd6 12. Bg3 Rae8 13. Bxf4 Qxf4 14. Rfe1 a6 15. h3 Bh5 16. g3 Qd6 17. g4 Nxg4 18. hxg4 Bxg4 19. Nh2 Qf4 20. Ndf1 Rxe1 21. Rxe1 f5 22. Qd2 Qd6 23. f4 h5 24. Qe3 Nd8 25. Qe5 Qc6 26. Nxg4 hxg4 27. Bxf5 Qh6 28. Qxd5+ Nf7 29. Qh1 1-0

[Event "Czech Youth U10 Boys 2024"]
[Site "Kouty nad Desnou"]
[Date "2024.03.09"]
[Round "1.8"]
[White "Kolar, Edvard"]
[Black "Havlik, David"]
[Result "1-0"]
[ECO "B90"]
[WhiteElo "1759"]
[BlackElo "1580"]
[Annotator "NA RC"]
[PlyCount "161"]
[EventDate "2024.03.10"]
[EventType "swiss"]
[EventRounds "9"]
[EventCountry "CZE"]
[SourceTitle "playchess.com"]
[Source "ChessBase"]
[SourceQuality "1"]
[TimeControl "40/5400+30:1800+30"]

1. e4 c5 2. Nf3 d6 3. d4 cxd4 4. Nxd4 Nf6 5. Nc3 a6 6. f3 e5 7. Nb3 Be6 8. Be3 Nbd7 9. Qd2 Be7 10. Be2 Nb6 11. O-O O-O 12. Kh1 d5 13. Bxb6 Qxb6 14. Nxd5 Nxd5 15. exd5 Rad8 16. c4 Bc8 17. Qc2 Qh6 18. Rfd1 f5 19. c5 Bh4 20. Nd2 Rf6 21. Nf1 f4 22. Bd3 Qh5 23. Be4 Bf5 24. Bxf5 Rxf5 25. c6 bxc6 26. dxc6 Rc8 27. c7 Rf7 28. Rd8+ Bxd8 29. cxd8=Q+ Rxd8 30. Nd2 Qg6 31. Ne4 Rfd7 32. Re1 Qb6 33. Qc4+ Kh8 34. b3 Rd1 35. Qe2 Rxe1+ 36. Qxe1 Qe3 37. Qf1 Qd3 38. Qxd3 Rxd3 39. Kg1 Rd1+ 40. Kf2 Ra1 41. a4 Ra2+ 42. Kf1 Kg8 43. Nc5 Rb2 44. Nxa6 Rxb3 45. Nc5 Ra3 46. Nd7 Rxa4 47. Nxe5 Kf8 48. g3 Ke7 49. Kg2 Ke6 50. Nd3 fxg3 51. Nc5+ Kf5 52. Nxa4 gxh2 53. Kxh2 Kf4 54. Kg2 g5 55. Nc5 h5 56. Kf2 h4 57. Nd3+ Kf5 58. Kg2 g4 59. f4 Ke4 60. Kf2 Kf5 61. Ke3 h3 62. Nf2 h2 63. Nh1 g3 64. Nxg3+ Kg4 65. Nh1 Kf5 66. Kf3 Kf6 67. Ng3 Kg6 68. Kg4 Kf6 69. Kh3 h1=Q+ 70. Nxh1 Kf5 71. Kg3 Kf6 72. Nf2 Kf5 73. Kf3 Kf6 74. Ke4 Ke6 75. Ng4 Ke7 76. Ke5 Kf7 77. Nf2 Ke7 78. Nd1 Kf7 79. Kf5 Kg8 80. Kf6 Kf8 81. f5 1-0

[Event "Czech Youth U10 Boys 2024"]
[Site "Kouty nad Desnou"]
[Date "2024.03.09"]
[Round "1.9"]
[White "Novotny, Adam"]
[Black "Policar, Martin"]
[Result "0-1"]
[ECO "B29"]
[WhiteElo "2072"]
[BlackElo "1758"]
[Annotator "RC"]
[PlyCount "110"]
[EventDate "2024.03.10"]
[EventType "swiss"]
[EventRounds "9"]
[EventCountry "CZE"]
[SourceTitle "playchess.com"]
[Source "ChessBase"]
[SourceQuality "1"]
[TimeControl "40/5400+30:1800+30"]

1. e4 c5 2. Nf3 Nf6 3. Nc3 d5 4. exd5 Nxd5 5. Bc4 Nxc3 6. dxc3 Qxd1+ 7. Kxd1 Nc6 8. Be3 e6 9. Ke2 Be7 10. Rad1 a6 11. a4 b6 12. Bf4 Ra7 13. Bd3 f5 14. Be5 Kf7 15. Bc4 Bf6 16. Bxf6 gxf6 17. Rd6 Rc7 18. Re1 Ke7 19. Red1 Rd8 20. Rxd8 Nxd8 21. Ke3 Nf7 22. Rd3 Nd6 23. Ba2 c4 24. Rd2 Bd7 25. Nd4 e5 26. Nf3 Bxa4 27. Ke2 Ne4 28. Rd1 Bxc2 29. Rc1 Bd3+ 30. Ke1 b5 31. Bb1 Nc5 32. Rd1 Bxb1 33. Rxb1 Nd3+ 34. Ke2 Ke6 35. Ne1 e4 36. f3 Ke5 37. g3 a5 38. Ke3 a4 39. h3 Rg7 40. g4 f4+ 41. Ke2 Rd7 42. h4 e3 43. Rd1 Rd5 44. Nxd3+ Rxd3 45. Rxd3 cxd3+ 46. Kxd3 Ke6 47. Ke2 Kf7 48. Kd3 Kg6 49. Ke2 Kf7 50. Kd3 Ke6 51. h5 Kd5 52. Ke2 Kc4 53. Kd1 Kd3 54. Ke1 e2 55. g5 fxg5 0-1

[Event "Czech Youth U10 Boys 2024"]
[Site "Kouty nad Desnou"]
[Date "2024.03.09"]
[Round "1.10"]
[White "Kala, Jakub"]
[Black "Krisica, Lukas"]
[Result "1-0"]
[ECO "A04"]
[WhiteElo "1750"]
[BlackElo "1531"]
[Annotator "NA RC"]
[PlyCount "43"]
[EventDate "2024.03.10"]
[EventType "swiss"]
[EventRounds "9"]
[EventCountry "CZE"]
[SourceTitle "playchess.com"]
[Source "ChessBase"]
[SourceQuality "1"]
[TimeControl "40/5400+30:1800+30"]

1. Nf3 c5 2. c4 e6 3. Nc3 b6 4. e4 Bb7 5. Bd3 d6 6. Bc2 Nd7 7. d4 cxd4 8. Nxd4 Ngf6 9. O-O Be7 10. f3 O-O 11. b3 Rc8 12. Ndb5 d5 13. Nxa7 Rc7 14. Nab5 Rc8 15. exd5 exd5 16. Nxd5 Nxd5 17. cxd5 Bf6 18. Rb1 Nc5 19. b4 Bxd5 20. bxc5 Bxa2 21. Rb4 Rxc5 22. Bb3 1-0

[Event "Czech Youth U10 Boys 2024"]
[Site "Kouty nad Desnou"]
[Date "2024.03.09"]
[Round "1.11"]
[White "Hanzel, Martin"]
[Black "Fadrny, Jachym"]
[Result "0-1"]
[ECO "C01"]
[WhiteElo "1474"]
[BlackElo "1729"]
[Annotator "NA RC"]
[PlyCount "100"]
[EventDate "2024.03.10"]
[EventType "swiss"]
[EventRounds "9"]
[EventCountry "CZE"]
[SourceTitle "playchess.com"]
[Source "ChessBase"]
[SourceQuality "1"]
[TimeControl "40/5400+30:1800+30"]

1. e4 e6 2. d4 d5 3. exd5 exd5 4. Bd3 Bd6 5. Nf3 Nc6 6. O-O Bg4 7. c3 Nge7 8. Bg5 Qd7 9. Re1 f6 10. Bh4 O-O-O 11. Nbd2 h5 12. h3 Be6 13. b3 g5 14. Bg3 Bxg3 15. fxg3 Qd6 16. Qe2 Bf7 17. Qf2 Bg6 18. Bxg6 Nxg6 19. c4 Nb4 20. c5 Qd7 21. Re3 Nc2 22. Rae1 Nxe3 23. Rxe3 g4 24. Nh4 Nxh4 25. gxh4 gxh3 26. Rxh3 Rhg8 27. Rf3 Rde8 28. Rxf6 Qg4 29. Qf5+ Qxf5 30. Rxf5 Re2 31. Rf2 Rxf2 32. Kxf2 Rg4 33. Nf3 Kd8 34. g3 b6 35. cxb6 cxb6 36. Ne5 Re4 37. Nc6+ Kd7 38. Nxa7 Rxd4 39. Ke3 Rb4 40. Kd3 d4 41. Kc2 d3+ 42. Kxd3 Rg4 43. Ke3 Rxg3+ 44. Kf2 Rh3 45. Kg2 Rxh4 46. Nb5 Ke6 47. Nc3 Kf5 48. Ne2 Rg4+ 49. Kh3 h4 50. a3 Re4 0-1

[Event "Czech Youth U10 Boys 2024"]
[Site "Kouty nad Desnou"]
[Date "2024.03.10"]
[Round "2.1"]
[White "Skoloud, Josef"]
[Black "Lutskiy, Mikhail"]
[Result "0-1"]
[ECO "B50"]
[WhiteElo "1564"]
[BlackElo "1676"]
[Annotator "NA RC"]
[PlyCount "120"]
[EventDate "2024.03.10"]
[EventType "swiss"]
[EventCountry "CZE"]
[SourceTitle "playchess.com"]
[Source "ChessBase"]
[SourceQuality "1"]
[TimeControl "40/5400+30:1800+30"]

1. e4 {[%emt 0:00:02]} c5 {[%emt 0:00:10]} 2. Nf3 {[%emt 0:00:07]} d6 {[%emt 0:00:33]} 3. c3 {[%emt 0:00:11]} Nf6 {[%emt 0:00:08]} 4. Be2 {[%emt 0:00:09]} g6 {[%emt 0:00:16]} 5. O-O {[%emt 0:00:36]} Bg7 {[%emt 0:00:10]} 6. Re1 {[%emt 0:00:42]} O-O {[%emt 0:00:12]} 7. Qc2 {[%emt 0:04:34]} Qc7 {[%emt 0:07:13]} 8. h3 {[%emt 0:07:51]} a6 {[%emt 0:01:34]} 9. d3 {[%emt 0:04:34]} Nbd7 {[%emt 0:00:58]} 10. Bf4 {[%emt 0:04:47]} e5 {[%emt 0:02:18]} 11. Be3 {[%emt 0:04:03]} b6 {[%emt 0:01:03]} 12. Nbd2 {[%emt 0:03:08]} Bb7 {[%emt 0:00:47]} 13. Rac1 {[%emt 0:03:24]} Rac8 {[%emt 0:01:05]} 14. Qb1 {[%emt 0:03:22]} b5 {[%emt 0:03:23]} 15. b4 {[%emt 0:12:11]} Qd8 {[%emt 0:02:25]} 16. c4 {[%emt 0:06:12]} Bc6 {[%emt 0:03:58]} 17. cxb5 {[%emt 0:05:09]} Bxb5 {[%emt 0:00:24]} 18. bxc5 {[%emt 0:02:34]} dxc5 {[%emt 0:00:36]} 19. Nc4 {[%emt 0:00:19]} Qe7 {[%emt 0:01:35]} 20. Qa1 {[%emt 0:02:47]} Bxc4 {[%emt 0:01:24]} 21. Rxc4 {[%emt 0:00:28]} Qd6 {[%emt 0:02:00]} 22. Rec1 {[%emt 0:01:24]} Rc7 {[%emt 0:03:56]} 23. Qc3 {[%emt 0:01:06]} Rfc8 {[%emt 0:00:43]} 24. Nd2 {[%emt 0:01:38]} Bf8 {[%emt 0:00:39]} 25. Nb3 {[%emt 0:06:20]} Qe6 {[%emt 0:09:41]} 26. Qc2 {[%emt 0:04:57]} Qd6 {[%emt 0:02:29]} 27. Qc3 {[%emt 0:05:25]} Qe6 {[%emt 0:04:36]} 28. Qc2 {[%emt 0:00:41]} Nb6 {[%emt 0:13:38]} 29. Rc3 {[%emt 0:00:19]} c4 {[%emt 0:11:36]} 30. dxc4 {[%emt 0:07:50]} Na4 {[%emt 0:00:27]} 31. Rd3 {[%emt 0:00:34]} Rxc4 {[%emt 0:00:38]} 32. Qd2 {[%emt 0:01:35]} Rxc1+ 33. Nxc1 {[%emt 0:00:32]} Nxe4 {[%emt 0:04:41]} 34. Qa5 {[%emt 0:01:22]} Nac3 {[%emt 0:04:36]} 35. f3 {[%emt 0:01:40]} Nxe2+ {[%emt 0:00:25]} 36. Nxe2 {[%emt 0:00:07]} Nf6 {[%emt 0:00:41]} 37. Rb3 {[%emt 0:01:02]} Nd5 {[%emt 0:00:31]} 38. Bf2 {[%emt 0:01:09]} Qc6 {[%emt 0:04:51]} 39. Kh1 {[%emt 0:01:26]} Bd6 {[%emt 0:05:30]} 40. Rd3 {[%emt 0:00:29]} Ne7 {[%emt 0:02:54]} 41. Qd2 {[%emt 0:30:17]} Bc7 {[%emt 0:30:58]} 42. Rc3 {[%emt 0:00:38]} Qe6 {[%emt 0:00:26]} 43. Qc2 {[%emt 0:00:36]} Nd5 {[%emt 0:00:49]} 44. Rc6 {[%emt 0:00:21]} Qd7 {[%emt 0:00:38]} 45. Rxa6 {[%emt 0:00:26]} Bb6 {[%emt 0:02:42]} 46. Qd2 {[%emt 0:01:32]} Bxf2 {[%emt 0:00:20]} 47. Ra5 {[%emt 0:01:12]} Nb6 {[%emt 0:00:32]} 48. Qb2 {[%emt 0:00:36]} Nc4 {[%emt 0:00:31]} 49. Qb5 {[%emt 0:00:21]} Qd1+ {[%emt 0:00:25]} 50. Kh2 {[%emt 0:00:13]} Nxa5 {[%emt 0:00:11]} 51. Qxe5 {[%emt 0:00:55]} Nc4 {[%emt 0:01:21]} 52. Qe7 {[%emt 0:00:22]} Nd2 {[%emt 0:00:38]} 53. g3 {[%emt 0:00:34]} Bc5 {[%emt 0:00:31]} 54. Qe5 {[%emt 0:00:16]} Nxf3+ {[%emt 0:00:07]} 55. Kg2 {[%emt 0:00:10]} Nxe5 {[%emt 0:00:19]} 56. h4 {[%emt 0:00:20]} Qxe2+ {[%emt 0:00:13]} 57. Kh3 {[%emt 0:00:07]} Qf2 {[%emt 0:00:57]} 58. a4 {[%emt 0:00:13]} h5 {[%emt 0:00:17]} 59. a5 {[%emt 0:00:11]} Nf3 {[%emt 0:00:13]} 60. a6 {[%emt 0:00:23]} Qh2# {[%emt 0:00:07]} 0-1

[Event "Czech Youth U10 Boys 2024"]
[Site "Kouty nad Desnou"]
[Date "2024.03.10"]
[Round "2.2"]
[White "Strihavka, Petr"]
[Black "Trejbal, Jindrich"]
[Result "0-1"]
[ECO "C15"]
[WhiteElo "1447"]
[BlackElo "1947"]
[Annotator "RC"]
[PlyCount "48"]
[EventDate "2024.03.10"]
[EventType "swiss"]
[EventCountry "CZE"]
[SourceTitle "playchess.com"]
[Source "ChessBase"]
[SourceQuality "1"]
[TimeControl "40/5400+30:1800+30"]

1. e4 {[%emt 0:00:02]} e6 {[%emt 0:00:09]} 2. d4 {[%emt 0:00:05]} d5 {[%emt 0:00:03]} 3. Nc3 {[%emt 0:00:05]} Bb4 {[%emt 0:00:06]} 4. Nge2 {[%emt 0:00:26]} Ne7 {[%emt 0:03:17]} 5. e5 {[%emt 0:03:04]} O-O {[%emt 0:02:45]} 6. g3 {[%emt 0:00:25]} c5 {[%emt 0:02:46]} 7. dxc5 {[%emt 0:01:45]} Bxc5 {[%emt 0:01:30]} 8. Bg2 {[%emt 0:04:43]} Nbc6 {[%emt 0:03:48]} 9. O-O {[%emt 0:00:50]} Nxe5 {[%emt 0:02:11]} 10. Bf4 {[%emt 0:02:54]} N5c6 {[%emt 0:03:16]} 11. Be3 {[%emt 0:05:44]} d4 {[%emt 0:06:31]} 12. Ne4 {[%emt 0:00:14]} dxe3 {[%emt 0:03:46]} 13. Nxc5 {[%emt 0:00:10]} exf2+ {[%emt 0:00:56]} 14. Rxf2 {[%emt 0:00:12]} Qxd1+ {[%emt 0:03:54]} 15. Rxd1 {[%emt 0:00:48]} b6 {[%emt 0:01:41]} 16. Nd7 {[%emt 0:00:48]} Bxd7 {[%emt 0:04:19]} 17. Rxd7 {[%emt 0:00:12]} Rad8 {[%emt 0:01:00]} 18. Bxc6 {[%emt 0:01:01]} Nxc6 {[%emt 0:00:08]} 19. Rc7 {[%emt 0:00:21]} Ne5 {[%emt 0:04:50]} 20. Rxa7 {[%emt 0:01:26]} Rd1+ {[%emt 0:00:22]} 21. Kg2 {[%emt 0:00:24]} Ng4 {[%emt 0:02:30]} 22. Rf3 {[%emt 0:01:59]} Rd2 {[%emt 0:00:49]} 23. Kh3 {[%emt 0:01:15]} h5 {[%emt 0:01:58]} 24. Nf4 {[%emt 0:02:23]} Rxh2# {[%emt 0:00:10]} 0-1

[Event "Czech Youth U10 Boys 2024"]
[Site "Kouty nad Desnou"]
[Date "2024.03.10"]
[Round "2.3"]
[White "Vo, Daniel"]
[Black "Zelenka, Tomas"]
[Result "1-0"]
[ECO "B35"]
[WhiteElo "1629"]
[BlackElo "1566"]
[Annotator "NA RC"]
[PlyCount "55"]
[EventDate "2024.03.10"]
[EventType "swiss"]
[EventCountry "CZE"]
[SourceTitle "playchess.com"]
[Source "ChessBase"]
[SourceQuality "1"]
[TimeControl "40/5400+30:1800+30"]

1. e4 {[%emt 0:00:02]} c5 {[%emt 0:00:12]} 2. Nf3 {[%emt 0:00:09]} Nc6 {[%emt 0:00:21]} 3. d4 {[%emt 0:00:12]} cxd4 {[%emt 0:00:11]} 4. Nxd4 {[%emt 0:00:13]} g6 {[%emt 0:00:18]} 5. Nc3 {[%emt 0:00:19]} Bg7 {[%emt 0:00:20]} 6. Be3 {[%emt 0:00:12]} Nf6 {[%emt 0:00:12]} 7. Bc4 {[%emt 0:00:23]} Qa5 {[%emt 0:00:36]} 8. f3 {[%emt 0:01:19]} Qb4 {[%emt 0:00:26]} 9. Bb3 {[%emt 0:01:18]} Nxe4 {[%emt 0:00:54]} 10. fxe4 {[%emt 0:04:54]} Nxd4 {[%emt 0:01:26]} 11. O-O {[%emt 0:00:55]} Nxb3 {[%emt 0:01:03]} 12. axb3 {[%emt 0:00:45]} O-O {[%emt 0:06:06]} 13. Nd5 {[%emt 0:01:21]} Qxe4 {[%emt 0:01:04]} 14. Ra4 {[%emt 0:02:27]} Qe6 {[%emt 0:01:19]} 15. Qd2 {[%emt 0:02:05]} Qd6 {[%emt 0:07:08]} 16. Re4 {[%emt 0:02:13]} Be5 {[%emt 0:07:16]} 17. b4 {[%emt 0:15:03]} Bxh2+ {[%emt 0:01:36]} 18. Kh1 {[%emt 0:00:15]} Be5 {[%emt 0:02:27]} 19. Bc5 {[%emt 0:01:29]} Qa6 {[%emt 0:03:31]} 20. Nxe7+ {[%emt 0:02:55]} Kh8 {[%emt 0:01:07]} 21. Rfe1 {[%emt 0:02:06]} d6 {[%emt 0:03:03]} 22. Qh6 {[%emt 0:04:33]} Bg7 {[%emt 0:04:44]} 23. Bd4 {[%emt 0:01:50]} f6 {[%emt 0:01:04]} 24. Nxg6+ {[%emt 0:02:55]} Kg8 {[%emt 0:00:25]} 25. Ne7+ {[%emt 0:00:30]} Kh8 {[%emt 0:00:59]} 26. Qh5 {[%emt 0:00:33]} Bd7 {[%emt 0:12:21]} 27. Rh4 {[%emt 0:01:37]} h6 {[%emt 0:00:53]} 28. Qg6 {[%emt 0:01:33]} 1-0